[Event "Ruzomberok Closed 2020 - 3. turnaj"]
[Site "Ruzomberok, Slovakia"]
[Date "2020.09.05"]
[Round "3.3"]
[White "Jurgos, Samuel"]
[Black "Caban, Lubor"]
[Result "1-0"]
[TimeControl "10m + 5s"]
[WhiteElo "1073"]
[BlackElo "1668"]

1. d4 {[%clk 00:10:08]} {[%emt 00:00:02]} f5 {[%clk 00:10:08]} {[%emt
00:00:02]} 2. Nf3 {[%clk 00:10:09]} {[%emt 00:00:03]} Nf6 {[%clk 00:10:12]}
{[%emt 00:00:02]} 3. Bf4 {[%clk 00:10:08]} {[%emt 00:00:06]} g6 {[%clk
00:10:14]} {[%emt 00:00:03]} 4. e3 {[%clk 00:10:04]} {[%emt 00:00:09]} Bg7
{[%clk 00:10:18]} {[%emt 00:00:01]} 5. c4 {[%clk 00:10:06]} {[%emt 00:00:03]}
Nh5 {[%clk 00:10:17]} {[%emt 00:00:05]} 6. Be5 {[%clk 00:10:01]} {[%emt
00:00:10]} O-O {[%clk 00:10:14]} {[%emt 00:00:09]} 7. Bxg7 {[%clk 00:10:02]}
{[%emt 00:00:03]} Kxg7 {[%clk 00:10:14]} {[%emt 00:00:05]} 8. Nc3 {[%clk
00:10:02]} {[%emt 00:00:06]} c6 {[%clk 00:10:12]} {[%emt 00:00:06]} 9. Bd3
{[%clk 00:09:56]} {[%emt 00:00:11]} Qb6 {[%clk 00:10:11]} {[%emt 00:00:07]} 10.
Qc2 {[%clk 00:09:56]} {[%emt 00:00:04]} e6 {[%clk 00:10:01]} {[%emt 00:00:14]}
11. h3 {[%clk 00:09:54]} {[%emt 00:00:08]} Nf6 {[%clk 00:10:04]} {[%emt
00:00:02]} 12. O-O-O {[%clk 00:08:44]} {[%emt 00:01:15]} Na6 {[%clk 00:09:34]}
{[%emt 00:00:35]} 13. a3 {[%clk 00:08:28]} {[%emt 00:00:21]} d6 {[%clk
00:09:28]} {[%emt 00:00:11]} 14. Rdg1 {[%clk 00:08:30]} {[%emt 00:00:04]} c5
{[%clk 00:07:47]} {[%emt 00:01:45]} 15. g4 {[%clk 00:08:22]} {[%emt 00:00:12]}
cxd4 {[%clk 00:07:43]} {[%emt 00:00:09]} 16. Nxd4 {[%clk 00:07:32]} {[%emt
00:00:55]} Nc5 {[%clk 00:07:44]} {[%emt 00:00:05]} 17. gxf5 {[%clk 00:07:08]}
{[%emt 00:00:30]} Nxd3+ {[%clk 00:07:43]} {[%emt 00:00:06]} 18. Qxd3 {[%clk
00:07:09]} {[%emt 00:00:03]} exf5 {[%clk 00:07:39]} {[%emt 00:00:10]} 19. Kb1
{[%clk 00:06:42]} {[%emt 00:00:32]} Kh8 {[%clk 00:06:07]} {[%emt 00:01:36]} 20.
Nd5 {[%clk 00:06:42]} {[%emt 00:00:06]} Nxd5 {[%clk 00:05:58]} {[%emt
00:00:14]} 21. cxd5 {[%clk 00:06:44]} {[%emt 00:00:03]} Bd7 {[%clk 00:05:51]}
{[%emt 00:00:12]} 22. Rc1 {[%clk 00:06:21]} {[%emt 00:00:28]} Rac8 {[%clk
00:05:54]} {[%emt 00:00:02]} 23. Ne6 {[%clk 00:06:20]} {[%emt 00:00:06]} Rxc1+
{[%clk 00:04:08]} {[%emt 00:00:48]} 24. Rxc1 {[%clk 00:06:22]} {[%emt
00:01:07]} Bxe6 {[%clk 00:04:11]} {[%emt 00:00:01]} 25. dxe6 {[%clk 00:06:21]}
{[%emt 00:00:06]} Re8 {[%clk 00:03:39]} {[%emt 00:00:37]} 26. Qc3+ {[%clk
00:06:24]} {[%emt 00:00:02]} Kg8 {[%clk 00:03:24]} {[%emt 00:00:20]} 27. Qf6
{[%clk 00:06:27]} {[%emt 00:00:03]} Rf8 {[%clk 00:03:12]} {[%emt 00:00:10]} 28.
Qe7 {[%clk 00:06:17]} {[%emt 00:00:22]} Qa6 {[%clk 00:01:09]} {[%emt 00:02:08]}
29. Qd7 {[%clk 00:05:50]} {[%emt 00:00:32]} Qd3+ {[%clk 00:01:08]} {[%emt
00:00:04]} 30. Ka1 {[%clk 00:05:53]} {[%emt 00:00:03]} Qd2 {[%clk 00:00:28]}
{[%emt 00:00:45]} 31. Rb1 {[%clk 00:05:51]} {[%emt 00:00:07]} 1-0

[Event "Ruzomberok Closed 2020 - 3. turnaj"]
[Site "Ruzomberok, Slovakia"]
[Date "2020.09.05"]
[Round "3.4"]
[White "Hajtmansky, Milan"]
[Black "Gollner, Martin"]
[Result "0-1"]
[TimeControl "10m + 5s"]
[WhiteElo "1590"]
[BlackElo "1123"]

1. e4 {[%clk 00:10:07]} {[%emt 00:00:02]} c5 {[%clk 00:10:09]} {[%emt
00:00:02]} 2. f4 {[%clk 00:10:11]} {[%emt 00:00:01]} e6 {[%clk 00:10:12]}
{[%emt 00:00:02]} 3. Nf3 {[%clk 00:10:14]} {[%emt 00:00:01]} Nc6 {[%clk
00:10:16]} {[%emt 00:00:02]} 4. Bb5 {[%clk 00:10:15]} {[%emt 00:00:04]} a6
{[%clk 00:10:19]} {[%emt 00:00:03]} 5. Bxc6 {[%clk 00:10:17]} {[%emt 00:00:02]}
bxc6 {[%clk 00:10:22]} {[%emt 00:00:02]} 6. c3 {[%clk 00:10:12]} {[%emt
00:00:09]} Nf6 {[%clk 00:10:23]} {[%emt 00:00:04]} 7. d3 {[%clk 00:10:13]}
{[%emt 00:00:05]} Be7 {[%clk 00:10:20]} {[%emt 00:00:08]} 8. O-O {[%clk
00:10:15]} {[%emt 00:00:03]} O-O {[%clk 00:10:22]} {[%emt 00:00:03]} 9. a3
{[%clk 00:10:17]} {[%emt 00:00:03]} Qb6 {[%clk 00:10:05]} {[%emt 00:00:21]} 10.
Kh1 {[%clk 00:10:17]} {[%emt 00:00:06]} d5 {[%clk 00:09:51]} {[%emt 00:00:20]}
11. e5 {[%clk 00:10:17]} {[%emt 00:00:05]} Nd7 {[%clk 00:09:54]} {[%emt
00:00:01]} 12. Nbd2 {[%clk 00:10:11]} {[%emt 00:00:11]} a5 {[%clk 00:09:54]}
{[%emt 00:00:06]} 13. Qb3 {[%clk 00:10:12]} {[%emt 00:00:03]} Ba6 {[%clk
00:09:32]} {[%emt 00:00:27]} 14. Qxb6 {[%clk 00:10:13]} {[%emt 00:00:04]} Nxb6
{[%clk 00:09:35]} {[%emt 00:00:02]} 15. Ne1 {[%clk 00:10:02]} {[%emt 00:00:16]}
Rab8 {[%clk 00:09:23]} {[%emt 00:00:17]} 16. Nc2 {[%clk 00:09:49]} {[%emt
00:00:18]} Bxd3 {[%emt 00:00:18]} 17. Ne1 {[%clk 00:09:49]} {[%emt 00:00:02]}
Bxf1 {[%clk 00:09:15]} {[%emt 00:00:02]} 18. Nxf1 {[%clk 00:09:52]} {[%emt
00:00:01]} Nc4 {[%clk 00:09:17]} {[%emt 00:00:04]} 19. h3 {[%clk 00:09:47]}
{[%emt 00:00:10]} Nxb2 {[%clk 00:08:47]} {[%emt 00:00:35]} 20. Bxb2 {[%clk
00:09:44]} {[%emt 00:00:08]} Rxb2 {[%clk 00:08:51]} {[%emt 00:00:02]} 21. Nd3
{[%clk 00:09:33]} {[%emt 00:00:16]} Rb3 {[%clk 00:08:44]} {[%emt 00:00:12]} 22.
Nd2 {[%clk 00:08:54]} {[%emt 00:00:45]} Rxc3 {[%clk 00:08:44]} {[%emt
00:00:05]} 23. Nf2 {[%clk 00:08:10]} {[%emt 00:00:47]} Rc2 {[%clk 00:08:31]}
{[%emt 00:00:18]} 24. Rd1 {[%clk 00:07:46]} {[%emt 00:00:30]} Rb8 {[%clk
00:08:34]} {[%emt 00:00:02]} 25. Kg1 {[%emt 00:00:21]} Rbb2 {[%clk 00:08:32]}
{[%emt 00:00:04]} 26. Kh2 {[%clk 00:05:54]} {[%emt 00:01:44]} Rxd2 {[%clk
00:08:29]} {[%emt 00:00:08]} 27. Rxd2 {[%clk 00:05:58]} Rxd2 {[%clk 00:08:32]}
{[%emt 00:00:02]} 28. Ng4 {[%clk 00:05:48]} {[%emt 00:00:15]} Bh4 {[%clk
00:08:14]} {[%emt 00:00:22]} 29. a4 {[%clk 00:04:57]} {[%emt 00:00:56]} c4
{[%clk 00:08:12]} {[%emt 00:00:08]} 30. Ne3 {[%clk 00:04:53]} {[%emt 00:00:09]}
c3 {[%clk 00:08:07]} {[%emt 00:00:10]} 31. Nf1 {[%clk 00:04:44]} {[%emt
00:00:13]} Rf2 {[%clk 00:08:00]} {[%emt 00:00:12]} 32. Ne3 {[%clk 00:04:39]}
{[%emt 00:00:11]} d4 {[%clk 00:07:48]} {[%emt 00:00:17]} 33. Nc4 {[%clk
00:04:31]} {[%emt 00:00:12]} c2 {[%clk 00:07:43]} {[%emt 00:00:11]} 34. Nxa5
{[%clk 00:04:22]} {[%emt 00:00:06]} c1=Q {[%emt 00:01:05]} 0-1

[Event "Ruzomberok Closed 2020 - 3. turnaj"]
[Site "Ruzomberok, Slovakia"]
[Date "2020.09.05"]
[Round "3.5"]
[White "Ciglian, Michal"]
[Black "Novak, Michal"]
[Result "1/2-1/2"]
[TimeControl "10m + 5s"]
[WhiteElo "1388"]
[BlackElo "1096"]

1. d4 {[%clk 00:10:08]} {[%emt 00:00:02]} Nf6 {[%clk 00:10:07]} {[%emt
00:00:04]} 2. c4 {[%clk 00:10:11]} {[%emt 00:00:01]} e6 {[%clk 00:10:07]}
{[%emt 00:00:05]} 3. Nc3 {[%clk 00:10:14]} {[%emt 00:00:02]} d5 {[%clk
00:10:10]} {[%emt 00:00:02]} 4. Nf3 {[%clk 00:10:16]} {[%emt 00:00:03]} c5
{[%clk 00:10:14]} {[%emt 00:00:02]} 5. cxd5 {[%clk 00:10:07]} {[%emt 00:00:14]}
Nxd5 {[%clk 00:10:11]} {[%emt 00:00:08]} 6. Nxd5 {[%clk 00:10:07]} {[%emt
00:00:05]} Qxd5 {[%clk 00:10:12]} {[%emt 00:00:04]} 7. Bf4 {[%clk 00:09:56]}
{[%emt 00:00:15]} Nc6 {[%clk 00:10:09]} {[%emt 00:00:09]} 8. dxc5 {[%clk
00:09:58]} {[%emt 00:00:03]} Qxc5 {[%clk 00:09:35]} {[%emt 00:00:39]} 9. a3
{[%clk 00:09:45]} {[%emt 00:00:19]} e5 {[%clk 00:09:25]} {[%emt 00:00:16]} 10.
Bg3 {[%clk 00:09:09]} {[%emt 00:00:40]} Bg4 {[%clk 00:08:55]} {[%emt 00:00:35]}
11. Rc1 {[%clk 00:08:45]} {[%emt 00:00:30]} Qd6 {[%clk 00:08:12]} {[%emt
00:00:47]} 12. Qb3 {[%clk 00:08:25]} {[%emt 00:00:25]} Bxf3 {[%clk 00:07:46]}
{[%emt 00:00:31]} 13. exf3 {[%clk 00:08:28]} {[%emt 00:00:02]} Rd8 {[%clk
00:07:48]} {[%emt 00:00:04]} 14. Qc3 {[%clk 00:08:00]} {[%emt 00:00:33]} Be7
{[%clk 00:06:55]} {[%emt 00:00:58]} 15. Bb5 {[%clk 00:08:01]} {[%emt 00:00:04]}
Bg5 {[%clk 00:06:27]} {[%emt 00:00:32]} 16. Bxc6+ {[%clk 00:07:31]} {[%emt
00:00:36]} bxc6 {[%clk 00:06:29]} {[%emt 00:00:03]} 17. Qxc6+ {[%clk 00:07:32]}
{[%emt 00:00:04]} Qxc6 {[%clk 00:06:06]} {[%emt 00:00:28]} 18. Rxc6 {[%clk
00:07:35]} {[%emt 00:00:01]} f6 {[%clk 00:05:57]} {[%emt 00:00:14]} 19. O-O
{[%clk 00:07:33]} {[%emt 00:00:07]} O-O {[%clk 00:05:59]} {[%emt 00:00:04]} 20.
Rc7 {[%clk 00:07:24]} {[%emt 00:00:13]} a5 {[%clk 00:05:40]} {[%emt 00:00:23]}
21. h4 {[%clk 00:07:24]} {[%emt 00:00:05]} Bh6 {[%clk 00:05:29]} {[%emt
00:00:17]} 22. b4 {[%clk 00:06:52]} {[%emt 00:00:37]} axb4 {[%clk 00:05:26]}
{[%emt 00:00:07]} 23. axb4 {[%clk 00:06:55]} {[%emt 00:00:01]} Bd2 {[%clk
00:05:30]} {[%emt 00:00:01]} 24. b5 {[%clk 00:06:48]} {[%emt 00:00:12]} Ba5
{[%clk 00:05:29]} {[%emt 00:00:06]} 25. Ra7 {[%clk 00:06:48]} {[%emt 00:00:05]}
Bb6 {[%clk 00:05:33]} {[%emt 00:00:01]} 26. Ra6 {[%clk 00:06:51]} {[%emt
00:00:02]} Rb8 {[%clk 00:05:32]} {[%emt 00:00:05]} 27. f4 {[%clk 00:06:51]}
{[%emt 00:00:06]} Bc7 {[%clk 00:05:17]} {[%emt 00:00:20]} 28. fxe5 {[%clk
00:06:46]} {[%emt 00:00:10]} Rxb5 {[%clk 00:04:59]} {[%emt 00:00:23]} 29. exf6
{[%clk 00:06:47]} {[%emt 00:00:04]} Bxg3 {[%clk 00:05:02]} {[%emt 00:00:03]} 30.
fxg3 {[%clk 00:06:45]} {[%emt 00:00:07]} g6 {[%clk 00:04:56]} {[%emt 00:00:10]}
31. Ra7 {[%clk 00:06:38]} {[%emt 00:00:11]} Rf7 {[%clk 00:04:58]} {[%emt
00:00:04]} 32. Rxf7 {[%clk 00:06:37]} {[%emt 00:00:06]} Kxf7 {[%clk 00:05:02]}
{[%emt 00:00:02]} 33. g4 {[%clk 00:06:40]} {[%emt 00:00:01]} Rb4 {[%clk
00:05:00]} {[%emt 00:00:07]} 34. g5 {[%clk 00:06:31]} {[%emt 00:00:13]} Rxh4
{[%clk 00:05:03]} {[%emt 00:00:03]} 35. Re1 {[%clk 00:06:35]} {[%emt 00:00:01]}
Rf4 {[%clk 00:04:48]} {[%emt 00:00:20]} 36. Re7+ {[%clk 00:06:36]} {[%emt
00:00:04]} Kf8 {[%clk 00:04:51]} {[%emt 00:00:02]} 37. Rxh7 {[%clk 00:06:39]}
{[%emt 00:00:02]} Rf5 {[%clk 00:04:53]} {[%emt 00:00:04]} 38. Rg7 {[%clk
00:06:23]} {[%emt 00:00:20]} Rxg5 {[%clk 00:04:42]} {[%emt 00:00:16]} 39. Ra7
{[%clk 00:06:02]} {[%emt 00:00:27]} Rf5 {[%clk 00:04:39]} {[%emt 00:00:08]} 40.
g4 {[%clk 00:05:12]} {[%emt 00:00:54]} Rxf6 {[%clk 00:04:29]} {[%emt 00:00:15]}
41. Kg2 {[%clk 00:05:16]} {[%emt 00:00:01]} Rc6 {[%clk 00:04:05]} {[%emt
00:00:29]} 42. Kg3 {[%clk 00:05:05]} {[%emt 00:00:16]} g5 {[%clk 00:04:08]}
{[%emt 00:00:02]} 43. Ra3 {[%clk 00:04:59]} {[%emt 00:00:12]} Kf7 {[%clk
00:04:09]} {[%emt 00:00:04]} 44. Rf3+ {[%clk 00:04:55]} {[%emt 00:00:10]} Rf6
{[%clk 00:03:58]} {[%emt 00:00:15]} 45. Rf5 {[%clk 00:04:36]} {[%emt 00:00:23]}
Kg6 {[%clk 00:03:52]} {[%emt 00:00:12]} 46. Ra5 {[%clk 00:04:35]} {[%emt
00:00:06]} Rb6 {[%clk 00:03:45]} {[%emt 00:00:12]} 47. Ra3 {[%clk 00:04:33]}
{[%emt 00:00:07]} Rb5 {[%clk 00:03:25]} {[%emt 00:00:26]} 48. Ra6+ {[%clk
00:04:35]} {[%emt 00:00:03]} Kf7 {[%clk 00:03:21]} {[%emt 00:00:08]} 49. Kf3
{[%clk 00:04:31]} {[%emt 00:00:09]} Rb4 {[%clk 00:03:14]} {[%emt 00:00:12]} 50.
Ra7+ {[%clk 00:04:12]} {[%emt 00:00:24]} Kf6 {[%clk 00:03:12]} {[%emt
00:00:07]} 51. Ra6+ {[%clk 00:04:16]} {[%emt 00:00:02]} Kf7 {[%clk 00:03:16]}
1/2-1/2

[Event "Ruzomberok Closed 2020 - 3. turnaj"]
[Site "Ruzomberok, Slovakia"]
[Date "2020.09.05"]
[Round "3.6"]
[White "Jurky, Marian"]
[Black "Demko, Ladislav"]
[Result "1-0"]
[TimeControl "10m + 5s"]
[WhiteElo "1347"]
[BlackElo "1701"]

1. c4 {[%clk 00:10:08]} {[%emt 00:00:02]} c5 {[%clk 00:10:05]} {[%emt
00:00:05]} 2. Nc3 {[%clk 00:10:11]} {[%emt 00:00:02]} Nc6 {[%clk 00:10:09]}
{[%emt 00:00:01]} 3. g3 {[%clk 00:10:15]} {[%emt 00:00:01]} Nf6 {[%clk
00:10:08]} {[%emt 00:00:06]} 4. Bg2 {[%clk 00:10:19]} d6 {[%clk 00:09:51]}
{[%emt 00:00:22]} 5. e3 {[%clk 00:10:22]} {[%emt 00:00:02]} e6 {[%clk
00:09:54]} {[%emt 00:00:01]} 6. Nge2 {[%clk 00:10:25]} {[%emt 00:00:02]} Be7
{[%clk 00:09:51]} {[%emt 00:00:09]} 7. O-O {[%clk 00:10:27]} {[%emt 00:00:02]}
O-O {[%clk 00:09:54]} {[%emt 00:00:01]} 8. d4 {[%clk 00:10:31]} {[%emt
00:00:02]} cxd4 {[%clk 00:09:53]} {[%emt 00:00:05]} 9. exd4 {[%clk 00:10:35]}
{[%emt 00:00:02]} d5 {[%clk 00:09:49]} {[%emt 00:00:09]} 10. cxd5 {[%clk
00:10:30]} {[%emt 00:00:10]} exd5 {[%clk 00:09:44]} {[%emt 00:00:09]} 11. Qb3
{[%clk 00:10:33]} {[%emt 00:00:02]} a5 {[%clk 00:08:02]} {[%emt 00:01:47]} 12.
Nxd5 {[%clk 00:10:25]} {[%emt 00:00:13]} Nxd5 {[%clk 00:07:59]} {[%emt
00:00:08]} 13. Qxd5 {[%clk 00:10:28]} {[%emt 00:00:03]} Qb6 {[%clk 00:07:43]}
{[%emt 00:00:20]} 14. Qb3 {[%clk 00:10:11]} {[%emt 00:00:23]} Qa6 {[%clk
00:07:01]} {[%emt 00:00:46]} 15. Bxc6 {[%clk 00:09:06]} {[%emt 00:01:11]} Qxc6
{[%clk 00:07:02]} {[%emt 00:00:04]} 16. Bf4 {[%clk 00:08:54]} {[%emt 00:00:17]}
Bh3 {[%clk 00:06:54]} {[%emt 00:00:13]} 17. d5 {[%clk 00:08:45]} {[%emt
00:00:14]} Qa6 {[%clk 00:06:20]} {[%emt 00:00:38]} 18. Rfe1 {[%clk 00:08:38]}
{[%emt 00:00:13]} Bb4 {[%clk 00:06:19]} {[%emt 00:00:06]} 19. Nc3 {[%clk
00:08:22]} {[%emt 00:00:21]} Qd3 {[%clk 00:06:09]} {[%emt 00:00:14]} 20. Qd1
{[%clk 00:08:16]} {[%emt 00:00:12]} Qa6 {[%clk 00:04:07]} {[%emt 00:02:06]} 21.
Qe2 {[%clk 00:06:41]} {[%emt 00:01:41]} Qg6 {[%clk 00:03:19]} {[%emt 00:00:54]}
22. a3 {[%clk 00:06:07]} {[%emt 00:00:39]} Bc5 {[%clk 00:02:33]} {[%emt
00:00:50]} 23. Qe4 {[%clk 00:04:47]} {[%emt 00:01:25]} Bf5 {[%clk 00:02:29]}
{[%emt 00:00:09]} 24. Qc4 {[%clk 00:04:41]} {[%emt 00:00:11]} Rfc8 {[%clk
00:02:09]} {[%emt 00:00:25]} 25. Qb5 {[%clk 00:04:09]} {[%emt 00:00:37]} b6
{[%clk 00:01:42]} {[%emt 00:00:32]} 26. Na4 {[%clk 00:03:26]} {[%emt 00:00:48]}
Bd3 {[%clk 00:01:15]} {[%emt 00:00:32]} 27. Qb3 {[%clk 00:02:07]} {[%emt
00:01:24]} Bc2 {[%clk 00:00:46]} {[%emt 00:00:34]} 28. Qb5 {[%clk 00:01:54]}
{[%emt 00:00:18]} Bd3 {[%clk 00:00:30]} {[%emt 00:00:22]} 29. Qd7 {[%clk
00:01:24]} {[%emt 00:00:35]} Bf5 {[%clk 00:00:18]} {[%emt 00:00:17]} 30. Qb7
{[%clk 00:01:12]} {[%emt 00:00:17]} Bd4 {[%emt 00:01:05]} 1-0

[Event "Ruzomberok Closed 2020 - 3. turnaj"]
[Site "Ruzomberok, Slovakia"]
[Date "2020.09.05"]
[Round "3.7"]
[White "Gasper, Peter"]
[Black "Konkolova, Nikola"]
[Result "0-1"]
[TimeControl "10m + 5s"]
[WhiteElo "1650"]
[BlackElo "1483"]

1. c4 {[%clk 00:10:07]} {[%emt 00:00:03]} e5 {[%clk 00:10:08]} {[%emt
00:00:02]} 2. Nc3 {[%clk 00:10:11]} {[%emt 00:00:01]} c6 {[%clk 00:10:11]}
{[%emt 00:00:02]} 3. e4 {[%clk 00:10:14]} {[%emt 00:00:02]} Bb4 {[%clk
00:10:09]} {[%emt 00:00:06]} 4. a3 {[%clk 00:10:16]} {[%emt 00:00:04]} Bxc3
{[%clk 00:10:10]} {[%emt 00:00:04]} 5. bxc3 {[%clk 00:10:20]} {[%emt 00:00:01]}
d5 {[%clk 00:10:05]} {[%emt 00:00:10]} 6. cxd5 {[%clk 00:10:22]} {[%emt
00:00:03]} cxd5 {[%clk 00:10:08]} {[%emt 00:00:01]} 7. exd5 {[%clk 00:10:26]}
{[%emt 00:00:02]} Qxd5 {[%clk 00:10:11]} {[%emt 00:00:02]} 8. d4 {[%clk
00:10:01]} {[%emt 00:00:30]} exd4 {[%clk 00:10:09]} {[%emt 00:00:07]} 9. Qxd4
{[%clk 00:10:02]} {[%emt 00:00:03]} Qxd4 {[%clk 00:10:09]} {[%emt 00:00:05]} 10.
cxd4 {[%clk 00:10:06]} {[%emt 00:00:02]} Nc6 {[%clk 00:10:11]} {[%emt
00:00:03]} 11. Be3 {[%clk 00:10:09]} {[%emt 00:00:02]} Nge7 {[%clk 00:10:06]}
{[%emt 00:00:10]} 12. Bc4 {[%clk 00:10:05]} {[%emt 00:00:10]} O-O {[%clk
00:10:00]} {[%emt 00:00:11]} 13. Nf3 {[%clk 00:10:09]} {[%emt 00:00:01]} Bg4
{[%clk 00:10:00]} {[%emt 00:00:05]} 14. Ne5 {[%clk 00:10:00]} {[%emt 00:00:14]}
Bh5 {[%clk 00:09:47]} {[%emt 00:00:18]} 15. O-O {[%clk 00:10:01]} {[%emt
00:00:04]} Rad8 {[%clk 00:09:28]} {[%emt 00:00:23]} 16. Nxc6 {[%clk 00:09:59]}
{[%emt 00:00:08]} Nxc6 {[%clk 00:09:31]} {[%emt 00:00:02]} 17. d5 {[%clk
00:09:59]} {[%emt 00:00:04]} Ne5 {[%clk 00:09:00]} {[%emt 00:00:37]} 18. Bb3
{[%clk 00:09:45]} {[%emt 00:00:17]} Ng4 {[%clk 00:08:35]} {[%emt 00:00:31]} 19.
Bxa7 {[%clk 00:09:41]} {[%emt 00:00:10]} Nf6 {[%clk 00:08:19]} {[%emt
00:00:20]} 20. Bb6 {[%clk 00:09:31]} {[%emt 00:00:14]} Be2 {[%clk 00:07:09]}
{[%emt 00:01:14]} 21. Rfe1 {[%clk 00:09:25]} {[%emt 00:00:13]} Rde8 {[%clk
00:06:12]} {[%emt 00:01:03]} 22. Bc5 {[%clk 00:09:17]} {[%emt 00:00:12]} Ba6
{[%clk 00:05:27]} {[%emt 00:00:50]} 23. Bxf8 {[%clk 00:09:19]} {[%emt
00:00:03]} Kxf8 {[%clk 00:05:30]} {[%emt 00:00:02]} 24. Rxe8+ {[%clk 00:09:23]}
{[%emt 00:00:02]} Kxe8 {[%clk 00:05:33]} {[%emt 00:00:01]} 25. d6 {[%clk
00:09:05]} {[%emt 00:00:23]} Kd7 {[%clk 00:05:26]} {[%emt 00:00:11]} 26. Bxf7
{[%clk 00:08:55]} {[%emt 00:00:15]} Kxd6 {[%clk 00:05:27]} {[%emt 00:00:03]} 27.
f3 {[%clk 00:08:52]} {[%emt 00:00:09]} h6 {[%clk 00:05:06]} {[%emt 00:00:26]}
28. g4 {[%clk 00:08:48]} {[%emt 00:00:08]} Ke5 {[%clk 00:04:57]} {[%emt
00:00:14]} 29. Kf2 {[%clk 00:08:52]} {[%emt 00:00:01]} Nd7 {[%clk 00:04:45]}
{[%emt 00:00:16]} 30. Kg3 {[%clk 00:08:51]} {[%emt 00:00:06]} g5 {[%clk
00:04:44]} {[%emt 00:00:07]} 31. Re1+ {[%clk 00:08:51]} {[%emt 00:00:06]} Kf6
{[%clk 00:04:44]} {[%emt 00:00:05]} 32. Bd5 {[%clk 00:08:42]} {[%emt 00:00:13]}
Ne5 {[%clk 00:04:31]} {[%emt 00:00:18]} 33. h4 {[%clk 00:08:21]} {[%emt
00:00:27]} gxh4+ {[%clk 00:03:31]} {[%emt 00:01:05]} 34. Kf2 {[%clk 00:08:25]}
{[%emt 00:00:01]} Nd3+ {[%clk 00:03:20]} {[%emt 00:00:16]} 0-1